[Event "XIX Sants Open 2017"]
[Site "Cotxeres de Sants"]
[Date "2017.08.20"]
[Round "3"]
[White "Leiro Pelaez, Alex"]
[Black "Maza Navarro, Llorens"]
[Result "0-1"]
[ECO "B90"]
[WhiteElo "1618"]
[BlackElo "1542"]
[Annotator "NA"]
[PlyCount "90"]
[EventDate "2017.??.??"]
[EventType "swiss"]
[EventCountry "ESP"]
[SourceTitle "playchess.com"]
[Source "ChessBase"]
[SourceQuality "1"]
[TimeControl "40/5400+30:1800+30"]

1. e4 {[%emt 0:00:00]} c5 {[%emt 0:00:22]} 2. Nf3 {[%emt 0:00:00]} d6 {[%emt 0:00:37]} 3. d4 {[%emt 0:00:01]} cxd4 {[%emt 0:00:26]} 4. Nxd4 {[%emt 0:00:09]} Nf6 {[%emt 0:00:29]} 5. Nc3 {[%emt 0:00:17]} a6 {[%emt 0:00:38]} 6. f3 {[%emt 0:00:37]} e6 {[%emt 0:02:24]} 7. Be3 {[%emt 0:00:21]} Be7 {[%emt 0:00:35]} 8. Qd2 {[%emt 0:00:20]} Bd7 {[%emt 0:02:03]} 9. O-O-O {[%emt 0:00:52]} Nc6 {[%emt 0:05:17]} 10. g4 {[%emt 0:01:09]} O-O {[%emt 0:02:55]} 11. g5 {[%emt 0:01:12]} Ne8 {[%emt 0:00:26]} 12. h4 {[%emt 0:00:19]} b5 {[%emt 0:01:47]} 13. Nxc6 {[%emt 0:03:01]} Bxc6 {[%emt 0:00:21]} 14. h5 {[%emt 0:00:38]} f5 {[%emt 0:01:59]} 15. gxf6 {[%emt 0:01:36]} Bxf6 {[%emt 0:01:32]} 16. Bh3 {[%emt 0:03:53]} Bd7 {[%emt 0:02:55]} 17. Rhg1 {[%emt 0:05:14]} Qa5 {[%emt 0:01:21]} 18. Kb1 {[%emt 0:01:35]} Bxc3 {[%emt 0:01:01]} 19. Qxc3 {[%emt 0:00:52]} Qxc3 {[%emt 0:00:11]} 20. bxc3 {[%emt 0:00:06]} Rxf3 {[%emt 0:00:20]} 21. Bxe6+ {[%emt 0:08:01]} Bxe6 {[%emt 0:00:26]} 22. Bd4 {[%emt 0:00:48]} Rb8 {[%emt 0:03:21]} 23. a3 {[%emt 0:05:41]} a5 {[%emt 0:01:07]} 24. Bxg7 {[%emt 0:04:51]} Nxg7 {[%emt 0:00:30]} 25. h6 {[%emt 0:00:07]} Rf7 {[%emt 0:01:54]} 26. Rxd6 {[%emt 0:01:12]} Bc4 {[%emt 0:00:47]} 27. Kb2 {[%emt 0:03:18]} Kf8 {[%emt 0:00:19]} 28. hxg7+ {[%emt 0:01:57]} Rxg7 {[%emt 0:00:11]} 29. Re1 {[%emt 0:04:45]} Rg6 {[%emt 0:02:03]} 30. Rd7 {[%emt 0:02:06]} Re8 {[%emt 0:02:23]} 31. Rxh7 {[%emt 0:01:43]} Rge6 {[%emt 0:00:58]} 32. e5 {[%emt 0:02:18]} Rxe5 {[%emt 0:03:58]} 33. Rh8+ {[%emt 0:00:42]} Kf7 {[%emt 0:00:16]} 34. Rxe8 {[%emt 0:02:48]} Rxe8 {[%emt 0:00:11]} 35. Rd1 {[%emt 0:03:15]} Re2 {[%emt 0:02:47]} 36. a4 {[%emt 0:02:15]} bxa4 {[%emt 0:00:42]} 37. Rd4 {[%emt 0:01:33]} Bb3 {[%emt 0:00:42]} 38. Rd7+ {[%emt 0:02:12]} Ke6 {[%emt 0:00:11]} 39. Ra7 {[%emt 0:00:10]} Rxc2+ {[%emt 0:00:18]} 40. Kb1 {[%emt 0:00:00]} a3 {[%emt 0:03:09]} 41. Rxa5 {[%emt 0:00:44]} a2+ {[%emt 0:00:21]} 42. Ka1 {[%emt 0:00:54]} Rxc3 {[%emt 0:00:30]} 43. Kb2 {[%emt 0:00:20]} Rh3 {[%emt 0:01:09]} 44. Ka1 {[%emt 0:03:33]} Rh1+ {[%emt 0:00:33]} 45. Kb2 {[%emt 0:00:08]} Rb1+ {[%emt 0:00:15]} 0-1

[Event "XIX Sants Open 2017"]
[Site "Cotxeres de Sants"]
[Date "2017.08.20"]
[Round "3"]
[White "Lopez Oliva, Victor"]
[Black "Kulev, Atanas"]
[Result "1-0"]
[ECO "B40"]
[WhiteElo "1530"]
[BlackElo "1618"]
[Annotator "NA"]
[PlyCount "95"]
[EventDate "2017.??.??"]
[EventType "swiss"]
[EventCountry "ESP"]
[SourceTitle "playchess.com"]
[Source "ChessBase"]
[SourceQuality "1"]
[TimeControl "40/5400+30:1800+30"]

1. e4 {[%emt 0:00:00]} c5 {[%emt 0:05:20]} 2. Nf3 {[%emt 0:02:30]} e6 {[%emt 0:03:18]} 3. d4 {[%emt 0:06:09]} cxd4 {[%emt 0:00:08]} 4. c3 {[%emt 0:00:26]} dxc3 {[%emt 0:02:50]} 5. Nxc3 {[%emt 0:00:04]} Nc6 {[%emt 0:03:14]} 6. Bc4 {[%emt 0:02:04]} Bb4 {[%emt 0:03:15]} 7. Bd2 {[%emt 0:06:49]} a6 {[%emt 0:04:36]} 8. a3 {[%emt 0:01:28]} Bc5 {[%emt 0:00:40]} 9. O-O {[%emt 0:01:56]} d6 {[%emt 0:01:24]} 10. b4 {[%emt 0:05:18]} Bb6 {[%emt 0:01:33]} 11. Qe2 {[%emt 0:03:46]} Nd4 {[%emt 0:01:50]} 12. Nxd4 {[%emt 0:03:20]} Bxd4 {[%emt 0:01:21]} 13. Rfd1 {[%emt 0:01:35]} Nf6 {[%emt 0:04:30]} 14. Rac1 {[%emt 0:01:51]} b5 {[%emt 0:03:35]} 15. Bb3 {[%emt 0:06:06]} Bb7 {[%emt 0:05:39]} 16. Bg5 {[%emt 0:00:48]} Bxc3 {[%emt 0:07:17]} 17. Rxc3 {[%emt 0:01:09]} h6 {[%emt 0:25:55]} 18. Bxf6 {[%emt 0:01:36]} Qxf6 {[%emt 0:07:39]} 19. Rcd3 {[%emt 0:02:40]} O-O {[%emt 0:01:01]} 20. Rxd6 {[%emt 0:00:35]} Rfd8 {[%emt 0:00:49]} 21. e5 {[%emt 0:03:42]} Qg5 {[%emt 0:00:24]} 22. f4 {[%emt 0:00:36]} Qe7 {[%emt 0:01:07]} 23. Qd2 {[%emt 0:02:20]} Rxd6 {[%emt 0:01:01]} 24. Qxd6 {[%emt 0:11:31]} Qxd6 {[%emt 0:00:11]} 25. exd6 {[%emt 0:00:06]} Rd8 {[%emt 0:00:13]} 26. g3 {[%emt 0:00:50]} Kf8 {[%emt 0:00:12]} 27. Kf2 {[%emt 0:00:52]} Ke8 {[%emt 0:00:13]} 28. Ke3 {[%emt 0:05:25]} Kd7 {[%emt 0:00:16]} 29. f5 {[%emt 0:00:54]} Rc8 {[%emt 0:01:24]} 30. fxe6+ {[%emt 0:02:50]} fxe6 {[%emt 0:00:06]} 31. Rd3 {[%emt 0:00:28]} e5 {[%emt 0:07:04]} 32. Bd1 {[%emt 0:08:16]} Rc4 {[%emt 0:01:20]} 33. Bb3 {[%emt 0:04:47]} Rc8 {[%emt 0:01:16]} 34. Bd5 {[%emt 0:01:27]} Bxd5 {[%emt 0:01:39]} 35. Rxd5 {[%emt 0:00:04]} Ke6 {[%emt 0:00:41]} 36. d7 {[%emt 0:01:50]} Rd8 {[%emt 0:00:58]} 37. Ke4 {[%emt 0:00:32]} g6 {[%emt 0:02:06]} 38. Rxe5+ {[%emt 0:01:16]} Kxd7 {[%emt 0:00:21]} 39. Rd5+ {[%emt 0:00:05]} Ke7 {[%emt 0:00:36]} 40. Rxd8 {[%emt 0:00:00]} Kxd8 {[%emt 0:00:02]} 41. Kd5 {[%emt 0:00:18]} Kd7 {[%emt 0:00:11]} 42. g4 {[%emt 0:00:13]} g5 {[%emt 0:05:17]} 43. h3 {[%emt 0:00:08]} Kc7 {[%emt 0:01:40]} 44. Ke6 {[%emt 0:00:17]} Kc6 {[%emt 0:00:23]} 45. Ke5 {[%emt 0:00:19]} a5 {[%emt 0:02:33]} 46. Ke6 {[%emt 0:02:03]} axb4 {[%emt 0:01:23]} 47. axb4 {[%emt 0:00:03]} Kb6 {[%emt 0:00:17]} 48. Kd6 {[%emt 0:00:06]} 1-0

[Event "XIX Sants Open 2017"]
[Site "Cotxeres de Sants"]
[Date "2017.08.21"]
[Round "4"]
[White "Petit Montes, Marc"]
[Black "Sole Gonzalez, Edgar"]
[Result "1-0"]
[ECO "C45"]
[WhiteElo "1948"]
[BlackElo "1866"]
[Annotator "NA"]
[PlyCount "41"]
[EventDate "2017.??.??"]
[EventType "swiss"]
[EventCountry "ESP"]
[SourceTitle "playchess.com"]
[Source "ChessBase"]
[SourceQuality "1"]
[TimeControl "40/5400+30:1800+30"]

1. e4 {[%emt 0:08:51]} e5 {[%emt 0:02:39]} 2. Nf3 {[%emt 0:00:29]} Nc6 {[%emt 0:00:13]} 3. d4 {[%emt 0:00:25]} exd4 {[%emt 0:00:30]} 4. Nxd4 {[%emt 0:00:08]} Bc5 {[%emt 0:00:18]} 5. Be3 {[%emt 0:00:49]} Bb6 {[%emt 0:00:11]} 6. Nf5 {[%emt 0:01:02]} Qf6 {[%emt 0:09:47]} 7. Nc3 {[%emt 0:02:09]} Nge7 {[%emt 0:01:17]} 8. Bxb6 {[%emt 0:01:18]} axb6 {[%emt 0:00:15]} 9. Ne3 {[%emt 0:00:18]} d6 {[%emt 0:02:21]} 10. Nb5 {[%emt 0:05:58]} Kd8 {[%emt 0:12:09]} 11. Be2 {[%emt 0:22:32]} Bd7 {[%emt 0:05:10]} 12. O-O {[%emt 0:08:34]} Na7 {[%emt 0:16:00]} 13. Nc3 {[%emt 0:01:48]} g6 {[%emt 0:06:25]} 14. Qd2 {[%emt 0:05:59]} Ke8 {[%emt 0:08:48]} 15. Ned5 {[%emt 0:14:24]} Nxd5 {[%emt 0:00:44]} 16. Nxd5 {[%emt 0:00:50]} Qd8 {[%emt 0:00:15]} 17. Qd4 {[%emt 0:00:08]} Rf8 {[%emt 0:02:19]} 18. Nf6+ {[%emt 0:01:13]} Ke7 {[%emt 0:00:05]} 19. e5 {[%emt 0:02:48]} Nc6 {[%emt 0:02:26]} 20. exd6+ {[%emt 0:00:33]} cxd6 {[%emt 0:00:20]} 21. Qh4 1-0

[Event "XIX Sants Open 2017"]
[Site "Cotxeres de Sants"]
[Date "2017.08.21"]
[Round "4"]
[White "Muhammad, Qasim"]
[Black "Marza Vendrell, Conrado"]
[Result "1/2-1/2"]
[ECO "C17"]
[WhiteElo "1850"]
[BlackElo "1943"]
[Annotator "NA"]
[PlyCount "88"]
[EventDate "2017.??.??"]
[EventType "swiss"]
[EventCountry "ESP"]
[SourceTitle "playchess.com"]
[Source "ChessBase"]
[SourceQuality "1"]
[TimeControl "40/5400+30:1800+30"]

1. e4 {[%emt 0:00:00]} e6 {[%emt 0:00:10]} 2. d4 {[%emt 0:00:00]} d5 {[%emt 0:00:09]} 3. Nc3 {[%emt 0:00:06]} Bb4 {[%emt 0:00:24]} 4. e5 {[%emt 0:00:17]} c5 {[%emt 0:00:15]} 5. Qg4 {[%emt 0:00:10]} Ne7 {[%emt 0:01:35]} 6. dxc5 {[%emt 0:00:28]} Bxc3+ {[%emt 0:00:35]} 7. bxc3 {[%emt 0:00:18]} Nbc6 {[%emt 0:02:14]} 8. Nf3 {[%emt 0:00:41]} Ng6 {[%emt 0:06:57]} 9. Bd3 {[%emt 0:01:38]} Qc7 {[%emt 0:03:36]} 10. O-O {[%emt 0:13:26]} Bd7 {[%emt 0:02:50]} 11. Re1 {[%emt 0:01:16]} O-O-O {[%emt 0:00:46]} 12. Qg3 {[%emt 0:00:41]} Rdg8 {[%emt 0:03:06]} 13. Bd2 {[%emt 0:15:37]} f5 {[%emt 0:07:33]} 14. exf6 {[%emt 0:06:39]} Qxg3 {[%emt 0:01:54]} 15. hxg3 {[%emt 0:00:45]} gxf6 {[%emt 0:00:18]} 16. Nd4 {[%emt 0:00:39]} Nd8 {[%emt 0:01:58]} 17. c4 {[%emt 0:09:56]} Ne7 {[%emt 0:04:11]} 18. cxd5 {[%emt 0:03:30]} Nxd5 {[%emt 0:02:08]} 19. Bc4 {[%emt 0:00:41]} Nc7 {[%emt 0:00:12]} 20. Ba5 {[%emt 0:07:34]} Re8 {[%emt 0:03:21]} 21. Rab1 {[%emt 0:05:05]} e5 {[%emt 0:05:00]} 22. Nb5 {[%emt 0:05:08]} Nxb5 {[%emt 0:02:09]} 23. Bxb5 {[%emt 0:00:17]} Bxb5 {[%emt 0:00:34]} 24. Rxb5 {[%emt 0:00:17]} Nc6 {[%emt 0:00:13]} 25. Bc3 {[%emt 0:00:19]} Rd8 26. Reb1 {[%emt 0:03:45]} Rd7 {[%emt 0:03:06]} 27. a4 {[%emt 0:00:38]} Rhd8 {[%emt 0:00:51]} 28. Kf1 {[%emt 0:02:22]} Rd1+ {[%emt 0:01:09]} 29. Ke2 {[%emt 0:00:30]} Nd4+ {[%emt 0:07:49]} 30. Bxd4 {[%emt 0:00:41]} Rxb1 {[%emt 0:00:13]} 31. Rxb1 {[%emt 0:00:43]} Rxd4 {[%emt 0:00:10]} 32. Rh1 {[%emt 0:00:29]} Rxa4 {[%emt 0:00:31]} 33. Rxh7 {[%emt 0:00:42]} Rc4 {[%emt 0:01:17]} 34. Kd3 {[%emt 0:06:17]} Rxc5 {[%emt 0:00:12]} 35. Rf7 {[%emt 0:00:22]} Rc6 {[%emt 0:00:56]} 36. c3 {[%emt 0:02:55]} a5 {[%emt 0:01:52]} 37. Kc2 {[%emt 0:00:36]} a4 {[%emt 0:00:15]} 38. Kb2 {[%emt 0:00:03]} b5 {[%emt 0:00:20]} 39. g4 {[%emt 0:00:20]} Kd8 {[%emt 0:04:05]} 40. g5 {[%emt 0:00:00]} fxg5 {[%emt 0:01:40]} 41. Rf5 {[%emt 0:01:15]} Rc5 {[%emt 0:01:19]} 42. Rxg5 {[%emt 0:00:02]} Ke7 {[%emt 0:00:27]} 43. f4 {[%emt 0:00:06]} Ke6 {[%emt 0:01:02]} 44. g4 {[%emt 0:04:20]} Rd5 {[%emt 0:00:26]} 1/2-1/2

[Event "XIX Sants Open 2017"]
[Site "Cotxeres de Sants"]
[Date "2017.08.21"]
[Round "4"]
[White "Fabregas Fontanet, Antonio"]
[Black "Casset Bello, Elena"]
[Result "1/2-1/2"]
[ECO "C86"]
[WhiteElo "1834"]
[BlackElo "1936"]
[Annotator "NA"]
[PlyCount "70"]
[EventDate "2017.??.??"]
[EventType "swiss"]
[EventCountry "ESP"]
[SourceTitle "playchess.com"]
[Source "ChessBase"]
[SourceQuality "1"]
[TimeControl "40/5400+30:1800+30"]

1. e4 e5 2. Nf3 Nc6 3. Bb5 a6 4. Ba4 Nf6 5. O-O Be7 6. Qe2 b5 7. Bb3 O-O 8. c3 d6 9. h3 Bb7 10. d4 Re8 11. dxe5 Nxe5 12. Nxe5 dxe5 13. Bc2 c5 14. Nd2 Qc7 15. Nf3 c4 16. Nh4 Nxe4 17. Nf5 Nf6 18. Bg5 Qc6 19. Nxe7+ Rxe7 20. f3 Ree8 21. Rae1 h6 22. Bc1 Rad8 23. Qf2 Qd6 24. Rd1 Qe7 25. Rxd8 Qxd8 26. Qg3 Kh8 27. Be3 Qe7 28. Re1 Qd7 29. Qh4 Qc6 30. Re2 Ba8 31. Qg3 Bb7 32. Bc1 Qd6 33. Qh4 Qc6 34. Be3 Ba8 35. Bc1 Bb7 1/2-1/2

[Event "XIX Sants Open 2017"]
[Site "Cotxeres de Sants"]
[Date "2017.08.21"]
[Round "4"]
[White "Lopez Arjona, Emilio"]
[Black "Abdelkader Garstka, Adam"]
[Result "1-0"]
[ECO "B40"]
[WhiteElo "1547"]
[BlackElo "1612"]
[Annotator "NA RC"]
[PlyCount "87"]
[EventDate "2017.??.??"]
[EventType "swiss"]
[EventCountry "ESP"]
[SourceTitle "playchess.com"]
[Source "ChessBase"]
[SourceQuality "1"]
[TimeControl "40/5400+30:1800+30"]

1. e4 c5 2. Nf3 e6 3. d4 cxd4 4. Nxd4 Nf6 5. Bd3 Nc6 6. Be3 d5 7. Nxc6 bxc6 8. e5 Nd7 9. Bf4 Ba6 10. O-O Bxd3 11. Qxd3 Be7 12. Re1 O-O 13. Qg3 Bh4 14. Qc3 Bg5 15. Be3 c5 16. Bxg5 Qxg5 17. Qe3 Qf5 18. Qe2 Rab8 19. c3 Nb6 20. b3 c4 21. Na3 cxb3 22. axb3 Nd7 23. Nc2 Rb7 24. Nd4 Qg5 25. Nf3 Qe7 26. Ra5 Rc8 27. Rc1 Rxb3 28. Rxa7 Rbxc3 29. Rxc3 Rxc3 30. Ra8+ Nf8 31. g3 Qb7 32. Ra2 Ng6 33. Kg2 h6 34. Rb2 Qc7 35. h4 Rc4 36. h5 Re4 37. Qb5 Nf8 38. Qe8 Qd7 39. Qa8 g6 40. Rb8 Qe7 41. Rb7 Qc5 42. Qe8 Kh8 43. Qxf7 Nd7 44. Rxd7 1-0

[Event "XIX Sants Open 2017"]
[Site "Cotxeres de Sants"]
[Date "2017.08.21"]
[Round "4"]
[White "Maza Navarro, Llorens"]
[Black "Riera Mestres, Josep"]
[Result "1-0"]
[ECO "B06"]
[WhiteElo "1542"]
[BlackElo "1568"]
[Annotator "NA"]
[PlyCount "59"]
[EventDate "2017.??.??"]
[EventType "swiss"]
[EventCountry "ESP"]
[SourceTitle "playchess.com"]
[Source "ChessBase"]
[SourceQuality "1"]
[TimeControl "40/5400+30:1800+30"]

1. d4 {[%emt 0:00:00]} g6 {[%emt 0:01:12]} 2. e4 {[%emt 0:00:23]} Bg7 {[%emt 0:00:27]} 3. Nf3 {[%emt 0:01:47]} d6 {[%emt 0:00:18]} 4. Bc4 {[%emt 0:00:58]} e6 {[%emt 0:00:42]} 5. Nc3 {[%emt 0:03:52]} Ne7 {[%emt 0:02:30]} 6. O-O {[%emt 0:02:57]} O-O {[%emt 0:00:15]} 7. Bg5 {[%emt 0:02:51]} h6 {[%emt 0:00:41]} 8. Be3 {[%emt 0:00:41]} c6 {[%emt 0:13:44]} 9. d5 {[%emt 0:10:46]} e5 {[%emt 0:07:43]} 10. Nd2 {[%emt 0:01:13]} Kh7 {[%emt 0:11:03]} 11. Be2 {[%emt 0:00:38]} Nd7 {[%emt 0:02:16]} 12. Nc4 {[%emt 0:03:56]} cxd5 {[%emt 0:07:29]} 13. Nxd5 {[%emt 0:00:17]} Nxd5 {[%emt 0:00:33]} 14. Qxd5 {[%emt 0:00:16]} Nf6 {[%emt 0:01:22]} 15. Qxd6 {[%emt 0:03:07]} Nxe4 {[%emt 0:01:01]} 16. Qxd8 {[%emt 0:00:25]} Rxd8 {[%emt 0:00:07]} 17. f3 {[%emt 0:01:19]} Nd6 {[%emt 0:01:28]} 18. Rad1 {[%emt 0:00:18]} Nxc4 {[%emt 0:00:24]} 19. Bxc4 {[%emt 0:00:58]} Rf8 {[%emt 0:13:50]} 20. Bc5 {[%emt 0:00:36]} Rh8 {[%emt 0:02:55]} 21. Bxf7 {[%emt 0:00:31]} b6 {[%emt 0:00:16]} 22. Bd5 {[%emt 0:00:46]} Ba6 23. Rfe1 {[%emt 0:02:22]} bxc5 {[%emt 0:04:08]} 24. Bxa8 {[%emt 0:00:09]} Rxa8 {[%emt 0:00:05]} 25. Rd7 {[%emt 0:00:54]} Bc4 {[%emt 0:02:08]} 26. b3 {[%emt 0:03:32]} Bg8 {[%emt 0:03:33]} 27. Rxe5 {[%emt 0:00:42]} Kh8 {[%emt 0:03:00]} 28. Rxc5 {[%emt 0:02:48]} Be6 {[%emt 0:00:30]} 29. Rd1 {[%emt 0:00:13]} Rc8 {[%emt 0:01:10]} 30. Rxc8+ {[%emt 0:00:27]} 1-0

[Event "XIX Sants Open 2017"]
[Site "Cotxeres de Sants"]
[Date "2017.08.21"]
[Round "4"]
[White "Lopez Oliva, Victor"]
[Black "Romero Gamez, Francisco Javier"]
[Result "1-0"]
[ECO "B21"]
[WhiteElo "1530"]
[BlackElo "1548"]
[Annotator "NA"]
[PlyCount "25"]
[EventDate "2017.??.??"]
[EventType "swiss"]
[EventCountry "ESP"]
[SourceTitle "playchess.com"]
[Source "ChessBase"]
[SourceQuality "1"]
[TimeControl "40/5400+30:1800+30"]

1. e4 {[%emt 0:00:07]} c5 {[%emt 0:00:24]} 2. d4 {[%emt 0:00:08]} cxd4 {[%emt 0:00:24]} 3. c3 {[%emt 0:00:14]} dxc3 {[%emt 0:00:16]} 4. Nxc3 {[%emt 0:00:08]} Nc6 {[%emt 0:00:17]} 5. Nf3 {[%emt 0:00:25]} d6 {[%emt 0:00:36]} 6. Bc4 {[%emt 0:02:07]} Nf6 {[%emt 0:01:42]} 7. O-O {[%emt 0:01:35]} e6 {[%emt 0:06:00]} 8. Qe2 {[%emt 0:04:58]} Be7 {[%emt 0:06:14]} 9. Rd1 {[%emt 0:03:51]} Qb6 {[%emt 0:05:33]} 10. Nb5 {[%emt 0:13:17]} Na5 {[%emt 0:22:17]} 11. Be3 {[%emt 0:07:02]} Qc6 {[%emt 0:02:45]} 12. Nxd6+ {[%emt 0:02:30]} Bxd6 {[%emt 0:01:03]} 13. Bb5 {[%emt 0:00:08]} 1-0

[Event "XIX Sants Open 2017"]
[Site "Cotxeres de Sants"]
[Date "2017.08.22"]
[Round "5"]
[White "Sukandar, Irine Kharisma"]
[Black "Sole Pijuan, Ferran"]
[Result "1-0"]
[ECO "D00"]
[WhiteElo "2400"]
[BlackElo "2216"]
[Annotator "NA"]
[PlyCount "53"]
[EventDate "2017.??.??"]
[EventType "swiss"]
[EventCountry "ESP"]
[SourceTitle "playchess.com"]
[Source "ChessBase"]
[SourceQuality "1"]
[TimeControl "40/5400+30:1800+30"]

1. d4 {[%emt 0:00:00]} d5 {[%emt 0:07:12]} 2. Bf4 {[%emt 0:00:00]} Nf6 {[%emt 0:01:15]} 3. e3 {[%emt 0:00:14]} Bf5 {[%emt 0:04:26]} 4. c4 {[%emt 0:01:24]} c6 {[%emt 0:17:19]} 5. Nc3 {[%emt 0:00:51]} Qb6 {[%emt 0:08:07]} 6. Qb3 {[%emt 0:02:02]} Nbd7 {[%emt 0:01:36] LiveBook: 8 Games} 7. Nf3 {[%emt 0:01:15]} e6 {[%emt 0:01:29]} 8. c5 {[%emt 0:00:53]} Qxb3 {[%emt 0:00:16]} 9. axb3 {[%emt 0:00:02]} a6 {[%emt 0:00:09] D02: 1 d4 d5 2 Nf3 sidelines, including 2...Nf6 3 g3 and 2...Nf6 3 Bf4} 10. b4 {[%emt 0:00:58]} Rc8 {[%emt 0:00:59]} 11. h3 {[%emt 0:01:21]} Be7 {[%emt 0:01:09]} 12. Nd2 $146 {[%emt 0:01:02]} Bd8 {[%emt 0:01:08]} 13. Nb3 {[%emt 0:00:52]} Bc7 {[%emt 0:02:22]} 14. Bxc7 {[%emt 0:00:34]} Rxc7 {[%emt 0:00:04]} 15. b5 {[%emt 0:00:14]} O-O $2 {[%emt 0:10:03] [#]} (15... Nb8 $16) 16. b6 $18 {[%emt 0:00:29]} ({Less strong is} 16. bxa6 Ra8 $14) 16... Rcc8 {[%emt 0:00:29]} 17. Na5 {[%emt 0:00:11]} Rb8 {[%emt 0:01:50]} 18. Bxa6 {[%emt 0:00:43]} bxa6 {[%emt 0:11:50]} 19. Nxc6 {[%emt 0:00:15]} Rb7 {[%emt 0:00:44]} 20. Rxa6 {[%emt 0:04:48]} Nb8 {[%emt 0:02:49]} 21. Nxb8 {[%emt 0:03:12]} Rfxb8 {[%emt 0:05:55]} 22. Kd2 {[%emt 0:01:51]} Ne4+ {[%emt 0:01:50]} 23. Nxe4 {[%emt 0:00:30]} dxe4 {[%emt 0:00:04]} 24. g4 {[%emt 0:00:17]} Bg6 {[%emt 0:00:13]} 25. Rc1 {[%emt 0:00:19]} Rf8 {[%emt 0:04:10]} 26. c6 {[%emt 0:00:20]} Rbb8 {[%emt 0:00:33]} 27. c7 {[%emt 0:00:28]} 1-0

[Event "XIX Sants Open 2017"]
[Site "Cotxeres de Sants"]
[Date "2017.08.22"]
[Round "5"]
[White "Boix Moreno, Daniel"]
[Black "Garriga Cazorla, Pere"]
[Result "1/2-1/2"]
[ECO "B30"]
[WhiteElo "2300"]
[BlackElo "2405"]
[Annotator "ChessBase"]
[PlyCount "74"]
[EventDate "2017.??.??"]
[EventType "swiss"]
[EventCountry "ESP"]
[SourceTitle "playchess.com"]
[Source "ChessBase"]
[SourceQuality "1"]
[TimeControl "40/5400+30:1800+30"]

1. e4 {[%emt 0:06:16]} c5 {[%emt 0:00:06]} 2. Nf3 {[%emt 0:00:16]} Nc6 {[%emt 0:00:04]} 3. Bb5 {[%emt 0:00:17]} a6 {[%emt 0:00:04]} 4. Bxc6 {[%emt 0:00:18]} dxc6 {[%emt 0:00:03]} 5. d3 {[%emt 0:00:41]} Qc7 {[%emt 0:00:03]} 6. Nbd2 {[%emt 0:01:08]} e5 {[%emt 0:00:22]} 7. Nc4 {[%emt 0:01:03]} f6 {[%emt 0:00:57]} 8. Bd2 {[%emt 0:05:11]} a5 {[%emt 0:03:10]} 9. a4 {[%emt 0:03:19]} Ne7 {[%emt 0:04:41]} 10. Nh4 {[%emt 0:13:30]} Be6 {[%emt 0:09:48]} 11. Qf3 {[%emt 0:02:55]} b6 {[%emt 0:03:28]} 12. b3 {[%emt 0:18:36]} O-O-O {[%emt 0:06:13]} 13. Ne3 {[%emt 0:07:21]} Kb7 {[%emt 0:02:47]} 14. g3 {[%emt 0:03:13]} Qd7 {[%emt 0:04:37]} 15. Nhf5 {[%emt 0:07:22]} Nc8 {[%emt 0:06:50]} 16. Nc4 {[%emt 0:01:00]} g6 {[%emt 0:01:04]} 17. Nfe3 {[%emt 0:00:21]} Bg7 {[%emt 0:00:39]} 18. Bc3 {[%emt 0:10:13]} Nd6 {[%emt 0:06:20]} 19. O-O-O {[%emt 0:01:18]} Rhe8 {[%emt 0:18:51]} 20. Qe2 {[%emt 0:00:59]} Bg8 {[%emt 0:05:00]} 21. Kb2 {[%emt 0:01:14]} Kc7 {[%emt 0:02:48]} 22. Nxd6 {[%emt 0:01:13]} Qxd6 {[%emt 0:00:02]} 23. Nc4 {[%emt 0:00:14]} Qe7 {[%emt 0:01:35]} 24. Qe3 {[%emt 0:01:44]} Kb7 {[%emt 0:01:03]} 25. Ra1 {[%emt 0:01:00]} f5 {[%emt 0:02:11]} 26. f3 {[%emt 0:00:47]} Qf8 {[%emt 0:01:04]} 27. Qe2 {[%emt 0:00:32]} h5 {[%emt 0:00:22]} 28. Rhg1 {[%emt 0:00:35]} Rd7 {[%emt 0:02:13]} 29. g4 {[%emt 0:01:05]} Bxc4 {[%emt 0:01:45]} 30. dxc4 {[%emt 0:02:42]} hxg4 {[%emt 0:00:40]} 31. fxg4 f4 32. Raf1 {[%emt 0:00:41]} Bf6 {[%emt 0:00:34]} 33. g5 {[%emt 0:01:06]} Bd8 {[%emt 0:00:17]} 34. h4 {[%emt 0:00:22]} Rh7 {[%emt 0:01:09]} 35. Be1 {[%emt 0:00:27]} Bc7 {[%emt 0:00:01]} 36. Qf3 {[%emt 0:00:31]} Rd8 {[%emt 0:01:50]} 37. Bf2 {[%emt 0:00:09]} Rhd7 {[%emt 0:01:55]} 1/2-1/2

[Event "XIX Sants Open 2017"]
[Site "Cotxeres de Sants"]
[Date "2017.08.22"]
[Round "5"]
[White "Marza Vendrell, Conrado"]
[Black "Zverev, Lev"]
[Result "0-1"]
[ECO "C26"]
[WhiteElo "1943"]
[BlackElo "1372"]
[Annotator "NA"]
[PlyCount "97"]
[EventDate "2017.??.??"]
[EventType "swiss"]
[EventCountry "ESP"]
[SourceTitle "playchess.com"]
[Source "ChessBase"]
[SourceQuality "1"]
[TimeControl "40/5400+30:1800+30"]

1. e4 {[%emt 0:00:00]} e5 {[%emt 0:00:07]} 2. Nc3 {[%emt 0:00:00]} Nf6 {[%emt 0:00:29]} 3. f4 {[%emt 0:00:00]} d6 {[%emt 0:00:44]} 4. Nf3 {[%emt 0:01:56]} Nc6 {[%emt 0:00:22]} 5. d3 {[%emt 0:06:32]} Be7 {[%emt 0:01:01]} 6. Be2 {[%emt 0:00:11]} O-O {[%emt 0:00:35]} 7. O-O {[%emt 0:00:05]} Nd4 {[%emt 0:00:48]} 8. Nxd4 {[%emt 0:07:21]} exd4 {[%emt 0:00:10]} 9. Nb5 {[%emt 0:01:52]} c5 {[%emt 0:00:14]} 10. c4 {[%emt 0:02:01]} a6 {[%emt 0:00:36]} 11. Na3 {[%emt 0:00:11]} Rb8 {[%emt 0:01:12]} 12. Kh1 {[%emt 0:02:57]} b5 {[%emt 0:00:50]} 13. b3 {[%emt 0:00:12]} bxc4 $11 {[%emt 0:03:44]} 14. Nxc4 {[%emt 0:00:41]} d5 {[%emt 0:00:08]} 15. exd5 {[%emt 0:01:37]} Nxd5 {[%emt 0:00:15]} 16. Bf3 {[%emt 0:01:09]} f5 {[%emt 0:00:54]} 17. Bd2 {[%emt 0:00:29]} Bb7 {[%emt 0:00:19]} 18. Re1 {[%emt 0:03:31]} Bf6 {[%emt 0:01:05]} 19. Ne5 {[%emt 0:01:08]} Re8 {[%emt 0:02:24]} 20. Rc1 {[%emt 0:04:43]} Rc8 {[%emt 0:00:21]} 21. Qe2 {[%emt 0:05:19]} Bxe5 {[%emt 0:00:50]} 22. fxe5 {[%emt 0:00:12]} g6 {[%emt 0:00:17]} 23. Qf2 {[%emt 0:00:27]} Qd7 {[%emt 0:02:28]} 24. Qg3 {[%emt 0:03:47]} Nb6 {[%emt 0:02:59]} 25. e6 {[%emt 0:09:31]} Qg7 {[%emt 0:00:11]} 26. Bh6 {[%emt 0:02:50]} Qxh6 {[%emt 0:00:27]} 27. Bxb7 {[%emt 0:00:16]} Rcd8 {[%emt 0:01:45]} 28. Rxc5 {[%emt 0:04:05]} f4 {[%emt 0:01:02]} 29. Qf3 {[%emt 0:04:35]} Qh4 {[%emt 0:00:28]} 30. Rcc1 {[%emt 0:03:05]} Re7 {[%emt 0:02:44]} 31. Qe4 {[%emt 0:04:18]} Rd6 {[%emt 0:01:26]} 32. Bc8 {[%emt 0:05:14]} Rd8 {[%emt 0:01:21]} 33. g3 {[%emt 0:04:22]} Qh6 {[%emt 0:01:00]} 34. Qxf4 {[%emt 0:01:17]} Qxf4 {[%emt 0:00:09]} 35. gxf4 {[%emt 0:00:09]} Rxc8 {[%emt 0:01:19]} 36. Rxc8+ {[%emt 0:00:14]} Nxc8 {[%emt 0:00:54]} 37. Re4 Kg7 {[%emt 0:01:10]} 38. Kg2 {[%emt 0:00:39]} Nd6 {[%emt 0:02:35]} 39. Rxd4 {[%emt 0:00:14]} Rxe6 {[%emt 0:02:23]} 40. Ra4 {[%emt 0:00:00]} Nb5 {[%emt 0:04:00]} 41. Kf2 {[%emt 0:01:33]} Kf6 {[%emt 0:09:39]} 42. Rc4 {[%emt 0:00:21]} Kf5 {[%emt 0:03:53]} 43. Kf3 {[%emt 0:00:19]} Rd6 {[%emt 0:00:43]} 44. Ke3 {[%emt 0:00:08]} Re6+ {[%emt 0:01:46]} 45. Kf3 {[%emt 0:00:02]} Re1 {[%emt 0:00:40]} 46. Rc5+ {[%emt 0:00:15]} Kf6 {[%emt 0:00:33]} 47. Rc6+ {[%emt 0:00:09]} Re6 {[%emt 0:00:14]} 48. Rc4 {[%emt 0:00:08]} Nd6 49. d4 {[%emt 0:01:11]} 0-1